{"text_format":"1","workbook":"xlsx","n_sheets":5,"sheets":["Порядок заполнения","Форма отчета","Перечень программ","Перечень мероприятий ФЦП","Наименования субъектов РФ"],"not_rendered":{"charts":0,"images":0,"macros":1,"external_links":1,"defined_names":37,"comments":0,"pivot_tables":0},"unopened":[],"bounds":{"document_bytes":16777216,"sheet_cells":100000,"rows_first":2000,"rows_last":500,"rows_between":2000,"halvings":0,"cell_chars":16384,"cell_head_chars":4096},"cells_cut":0,"cells_raw":0,"read":"whole","date_system":"1900"}

{"sheet":"Порядок заполнения","index":0,"n_rows":36,"n_cols":2,"rows_kept":36,"cut":false,"hidden":false,"merged":[]}
["Пароль защиты:1987"]
[]
[]
[]
[null,"Рекомендации о  порядке  предоставления в ФКУ \"Дирекция Программы ПБДД\" квартальной отчетности о ходе выполнения региональных и муниципальных программ (подпрограмм) и внепрограммных мероприятий по повышению безопасности дорожного движения и правила ее заполнения"]
[null,"1.     Предоставление отчетности"]
[null,"1.1. Отчетные формы и информационная справка предоставляется за подписью лица, ответственного за реализацию Программы в субъекте Российской Федерации, а также исполнителя,  ответственного за подготовку отчета."]
[null,"1.2. Срок предоставления отчета о ходе выполнения региональных и муниципальных программ (подпрограмм) и внепрограммных мероприятий по повышению безопасности дорожного движения за 4 квартал 2013 года  - до 15 января 2014 г."]
[null,"1.3. Подписанный отчет  на бумажном носителе направляется  в адрес ФКУ \"Дирекция Программы ПБДД\": 127018, Москва, 3-й проезд Марьиной Рощи, д. 40, стр. 11.\n В случае крайней необходимости возможно использование факса  8-495-627-72-06\n"]
[null,"1.4. Перед отправлением печатных форм рекомендуется предварительно направить их электронные версии для согласования и выявления возможных ошибок на электронный адрес ФКУ \"Дирекция Программы ПБДД\"  fcp1320@yandex.ru \nФайл с отчетом в формате Excel должен иметь название в следующем виде: XX_наименование субъекта РФ_otchet_4_kv_2013, где XX - номер субъекта РФ в соответствии с Конституцией РФ.\nПеречень субъектов РФ с номерами в соответствии с Конституцией РФ приведен во вкладке \"Наименования субъектов РФ\"\nДирекция просит направлять отчет по электронной почте только в формате Excel."]
[null,"Примечание: Для облегчения заполнения электронной формы отчета и уменьшения вероятности ошибок итоговые ячейки рассчитываются автоматически; часть ячеек защищена от форматирования, редактирования и ввода данных неправильного типа, например, текста вместо чисел."]
[null,"2.     Заполнение формы отчета"]
[null,"2.1.  По умолчанию предоставлено 20 строк для ввода данных по мероприятиям федеральной целевой программы \"Повышение безопасности дорожного движения в 2013 - 2020 годах\", региональных и муниципальных программ (подпрограмм), направленных на сокращение числа лиц, погибших в результате дорожно-транспортных происшествий, и повышение уровня безопасности дорожного движения за счет средств регионального, местных бюджетов и внебюджетных источников.\nДля добавления строк необходимо нажать на кнопку \"Добавить строку для ввода данных по мероприятию\" в верхнем левом углу формы отчета.\nПри добавлении строки нумерация строк в графе 1 проставляется автоматически."]
[null,"2.2. В графе 2 \"Код пр.\" указывается присваиваемый условный порядковый номер региональной программы, муниципальных программ. Перечень программ указывается во вкладке \"Перечень программ\".\nЕсли в отчетном периоде осуществлялось мероприятие, направленное на сокращение числа лиц, погибших в результате дорожно-транспортных происшествий, и повышение уровня безопасности дорожного движения, однако оно отсутствует в региональной программе (муниципальных программах), данное мероприятие считается внепрограммным. При этом в графе 2 \"Код пр.\" указывается значение \"вп\"."]
[null,"2.3. В графе 3 указывается полное наименование мероприятия в соответствии с региональной программой (муниципальными программами).\nПри этом должны быть отражены все мероприятия, по которым в соотвествующих программах запланировано финансирование в отчетном году, включая мероприятия, которые на момент составления отчета не начали реализовываться."]
[null,"2.4. В графе 4 необходимо обязательно указать привязку мероприятия региональной программы (муниципальных программам) к мероприятиям федеральной целевой программы \"Повышение безопасности дорожного движения в 2013-2020 годах\". Для этого предлагается выбрать номер соответствующего мероприятия из списка. (Перечень полных наименований мероприятий ФЦП указан во вкладке \"Перечень мероприятий ФЦП\".\nЕсли мероприятие не соответствует ни одному мероприятию ФЦП, то необходимо выбрать значение \" - \"."]
[null,"2.5. В графе 5 необходимо указать источник финансирования мероприятия выбрав соответствующее обозначение из списка. Условные обозначения: РБ - региональный бюджет, МБ - местные бюджеты, ВБИ - внебюджетные источники.\nВнимание! В случае, если одно мероприятие имеет несколько источников финансирования, то по каждому источнику финансирования данные записываются отдельной строкой.\n\nВ графах 6-10, 13, 15, 16 данные показываются нарастающим итогом с начала года. В графах 14, 17 данные показываются за отчетный квартал.\nСледует вносить полную стоимость в тысячах рублей в соответствии с первичными документами. В форме значения автоматически округляются до 1 десятичного знака.\n"]
[null,"2.6. В графе 6 указываются плановые объемы финансирования по мероприятиям, запланированным в региональной программе (муниципальных программах) за счет средств соответствующего источника финансирования (региональный бюджет, местные бюджеты, внебюджетные источники)."]
[null,"2.7. В графе 7 указываются объемы финансирования, предусмотренные на реализацию мероприятий региональной программы (муниципальных программ) за счет средств соответствующего источника финансирования (региональный бюджет, местные бюджеты, внебюджетные источники)."]
[null,"2.8. В графе 8 указываются доведенные лимиты бюджетных обязательств (с учетом уточненной сводной бюджетной росписи) на реализацию мероприятий региональной программы (муниципальных программ) за счет средств соответствующего источника финансирования (региональный бюджет, местные бюджеты, внебюджетные источники).\nЗначения графы 8 не могут превышать значения графы 7."]
[null,"2.9. В графах 9 и 10 указывается стоимость контрактов (договоров) на поставку товаров, выполнение работ, оказание услуг.\nПри этом в графе 9 указывается сумма стоимости контрактов (договоров), заключенных в текущем году, а также полная стоимость многолетних контрактов (договоров), продолжающих действовать в текущем году."]
[null,"2.10. В графе 10 указывается сумма стоимости контрактов (договоров), заключенных в текущем году, а также той части стоимости многолетних контрактов (договоров), которая предусмотрена на текущий год.\nЗначения графы 10 не могут превышать значения графы 9."]
[null,"2.11. В графах 11 и 12 указывается количество контрактов (договоров) на поставку товаров, выполнение работ, оказание услуг в рамках мероприятий региональной программы (муниципальных программ) финансируемых за счет средств бюджета субъекта РФ, местных бюджетов, а также внебюджетных источников, соответственно (нарастающим итогом с начала года).\nПри этом в графе 11 указывается общее количество действующих в 2013 году контрактов (договоров), в том числе действующие в 2013 году контракты, договора прошлых лет."]
[null,"2.12. В графе 12 указывается количество контрактов (договоров) 2013 года.\nЗначения графы 12 не могут превышать значения графы 11.\n\nСтоимость и количество заключенных контрактов (договоров) необходимо указывать вне зависимости от наличия оплаты по ним.\n"]
[null,"2.13. В графах 13 и 14 указываются кассовые расходы отчетного года по заключенным контрактам (договорам) на выполнение мероприятий региональной программы (муниципальных программ) за счет средств бюджета субъекта РФ, местных бюджетов, а также внебюджетных источников, соответственно.\nВ графе 13 указывается сумма кассовых расходов за 2013 год по контрактам (договорам) 2013 года и контрактам (договорам) прошлых лет, действующим в 2013 году."]
[null,"2.14. В графе 14 указывается сумма кассовых расходы по контрактам (договорам) отчетного квартала 2013 года."]
[null,"2.15. В графе 15 указывается сумма по кредиторской задолжности (при наличии)."]
[null,"2.16. В графах 16 и 17 указывается стоимость фактически оплаченных работ (этапов работ) отчетного года, выполненных в полном объеме и закрытых актами сдачи-приемки, в том числе за отчетный квартал.\nВ графе 16 указывается стоимость оплаченных работ и этапов работ, выполненных в полном объеме и закрытых актами сдачи-приемки с начала года."]
[null,"2.17. В графе 17 указывается стоимость оплаченных работ и этапов, выполненных в полном объеме и закрытых актами сдачи-приемки за отчетный квартал."]
[null,"2.18. В графах 18, 19 и 20 отражаются фактические результаты реализации мероприятия.\nВ графе 18 указывается количественный результат реализации мероприятия."]
[null,"2.19. В графе 19 указывется единица измерения количественного показателя (например, шт., ед., м, км, п.м. и т.п.)."]
[null,"2.20. В графе 20 необходимо кратко описать результат реализации мероприятия, например: закуплено оборудование (наименование, кол-во), установлены знаки (кол-во), установлены дорожные ограждения (длина в пог.м),  проведена акция (наименование, кол-во) и т.д. В случае наличия промежуточного результата, необходимо указать этот результат, например: разработано техническое задание, проведен конкурс, оплачен аванс по государственному контракту, договору."]
[]
[]
[null,"По вопросам заполнения отчета обращайтесь в ФКУ \"Дирекция Программы ПБДД\""]
[null,"тел. (495) 627-72-16 доб. 185, 124, 105"]

{"sheet":"Форма отчета","index":1,"n_rows":192,"n_cols":21,"rows_kept":192,"cut":false,"hidden":false,"merged":[[5,13,7,15],[5,5,8,5],[5,6,8,6],[24,1,25,1],[24,3,25,3],[0,3,0,20],[2,9,2,17],[4,17,4,20],[1,4,1,20],[5,7,8,7],[15,1,16,1],[10,20,14,20],[5,11,7,12],[5,8,8,8],[5,9,7,10],[5,16,7,17],[5,18,7,20],[5,0,8,0],[5,3,8,3],[5,1,8,1],[5,4,8,4],[49,4,50,4],[49,3,50,3],[18,3,19,3],[24,4,25,4],[78,0,78,9],[76,0,76,9],[49,20,50,20],[24,2,25,2],[26,2,27,2],[49,1,50,1],[26,1,27,1],[26,3,27,3],[26,4,27,4],[49,2,50,2],[24,20,25,20],[26,20,27,20],[18,20,19,20],[18,1,19,1],[15,20,16,20],[15,4,16,4],[18,4,19,4],[15,2,16,2],[18,2,19,2],[15,3,16,3]]}
[null,null,null,"Отчет"]
[null,null,null,null,"о ходе выполнения региональных и муниципальных программ (подпрограмм) и внепрограммных мероприятий по повышению безопасности дорожного движения"]
[null,null,null,null,null,null,null,null,null,"Республика Алтай"]
[null,null,null,null,null,null,null,null,null,null,null,null,null,null,"(наименование субъекта РФ)"]
[null,null,null,null,null,null,null,null,null,null,null,null,null,null,null,null,"за    12","месяцев  2013 года                                     (в тыс. рублей)"]
["№ п.п.","Код пр.",null,"Наименование мероприятия","Код мероприятия по ФЦП","Источник финансирования (РБ, МБ, ВБИ)","Запланиро-вано в рамках программы на 2013 г.","Бюджетные назначения на 2013 г.","Лимиты бюджетных обязательств на 2013 г.","Стоимость работ, предусмотренных на 2013 по действующим контрактам",null,"Количество контрактов, договоров, действующих в 2013 г.",null,"Фактически профинансировано (кассовые расходы) на реализацию программы (подпрограммы)",null,null,"Фактически освоено средств (по актам сдачи-приемки) на реализацию программы (подпрограммы)",null,"Фактическое выполнение мероприятия программы (подпрограммы)\n"]
[]
[]
[null,null,null,null,null,null,null,null,null,"Всего, включая действующие контракты прошлых лет","Контракты, заключенные за 12 месяцев 2013 года","Всего, включая конт-ракты прош-лых лет","Конт-ракты за 2013 год","С начала года","В том числе за отчетный квартал","по креди-торской задолж-ности","С начала года","В том числе за отчетный квартал","Количест-венный показатель","Ед. измере-ния","Краткое описание результатов выполнения мероприятия программы (подпрограммы)"]
["1","2",null,"3","4","5","6","7","8","9","10","11","12","13","14","15","16","17","18","19","20"]
[" - ",null,null,"Итого по всем мероприятиям",null,null,{"$f":"SUM(G13:G15)","v":51014.1},{"$f":"SUM(H13:H15)","v":51014.2},51014.2,48418.5,48418.5,23,23,50052.5,11013.409000000001,0,50052.5,11013.409000000001,null,null," - "]
[" - ",null,null,"в том числе:"]
[" - ",null,null,"за счет средств регионального бюджета",null,{"$f":"A190","v":"РБ"},{"$f":"G16+G18+G19+G21+G22+G23+G24+G25+G27+G29+G30+G31+G32+G33+G34+G35+G36+G37+G38+G39+G40+G41+G42+G43+G44+G45+G46+G47+G48+G49+G50+G52+G53+G54+G55+G56+G57+G58+G59+G60+G61+G62+G63+G64+G65+G66+G67+G68+G69+G71","v":50104.5},50104.6,50104.6,47508.9,47508.9,21,21,49142.9,10343.809000000001,0,49142.9,10343.809000000001]
[" - ",null,null,"за счет средств местных бюджетов",null,{"$f":"A191","v":"МБ"},{"$f":"G17+G20+G26+G28+G51","v":909.6},909.6,909.6,909.6,909.6,2,2,909.6,669.6,0,909.6,669.6]
[" - ",null,null,"за счет внебюджетных источников ",null,{"$f":"A192","v":"ВБИ"},0,0,0,0,0,0,0,0,0,0,0,0]
[1,"1","1","Строительство служебных помещений для участковых уполномоченных полиции органов внутренних дел (участковыми пунктами полиции) для приема граждан в г. Горно-Алтайске и Майминском районе (строительство 4 участковых пунктов полиции), в том числе разработка проектно-сметной документации","\"вп\"","Р.Б.","2000",2000,2000,{"$f":"I16","v":2000},{"$f":"I16","v":2000},1,1,2000,1441.2719999999999,0,2000,{"$f":"O16","v":1441.2719999999999},1,"объект","Строительство участкового пункта полиции по ул.Афганцев в г. Горно-Алтайске. Строительство ведется по заключенному контракту с ООО НППСП «Зодчий».    Мероприятие направлено на улучшение качества обслуживания граждан на административных участках. "]
[2,null,null,null,null,"М.Б.","857",857,857,{"$f":"I17","v":857},{"$f":"I17","v":857},1,1,857,617,0,857,{"$f":"O17","v":617},1,"объект"]
[4,"1","2","Обустройство наиболее опасных участков улично-дорожной сети дорожными ограждениями; нанесение горизонтальной дорожной разметки на дорогах регионального значения","\"вп\"","Р.Б.","2513",2513,2513,{"$f":"I18","v":2513},{"$f":"I18","v":2513},0,0,2513,676.75,0,2513,676.75,1.47,"км.","В 2013 году выполнена замена тросового ограждения на МБО а/д \"Горно-Алтайск - Чоя - Верх-Бийск км 14+248-14+633; 14+850-15+040; 33+146-33+394. Всего выполнено - 1,47 км."]
[5,"1","3","Строительство детского автогородка в г. Горно-Алтайске","\"вп\"","Р.Б.","0",0,0,0,0,0,0,0,0,0,0,0,0,"-","В связи с отсутствием финансирования, мероприятие не проводилось"]
[6,null,null,null,null,"М.Б.","0",0,0,0,0,0,0,0,0,0,0,0,0,"-"]
[7,"1","4","Обустройство участков улично-дорожной сети городов и населенных пунктов пешеходными ограждениями, в том числе в зоне пешеходных переходов","\"вп\"","Р.Б.","0",0,0,0,0,0,0,0,0,0,0,0,0,"-","В связи с отсутствием финансирования, мероприятие не проводилось"]
[9,"1","5","Оборудование нерегулируемых пешеходных переходов освещением, искусственными дорожными неровностями, светофорами Т.7, системами светового оповещения, дорожными знаками с внутренним освещением и светодиодной индикацией, Г-образными опорами, дорожной разметкой, в том числе с применением штучных форм и цветных дорожных покрытий, световозвращателями и индикаторами, а также устройствами дополнительного освещения и другими элементами повышения безопасности дорожного движения","\"вп\"","Р.Б.","0",0,0,0,0,0,0,0,0,0,0,0,0,"-","В связи с отсутствием финансирования, мероприятие не проводилось"]
[11,"1","6","Строительство (реконструкция), техническое перевооружение объектов системы автоматического контроля и выявления нарушений правил дорожного движения","\"вп\"","Р.Б.","0",0,0,0,0,0,0,0,0,0,0,0,0,"-","В связи с отсутствием финансирования, мероприятие не проводилось"]
[13,"1","7","Строительство в городах и населенных пунктах надземных (подземных) пешеходных переходов","\"вп\"","Р.Б.","0",0,0,0,0,0,0,0,0,0,0,0,0,"-","В связи с отсутствием финансирования, мероприятие не проводилось"]
[15,"1","8","Приобретение, модернизация и обслуживание компьютерного оборудования, технических средств наблюдения и рабочих станций аппаратно-программного комплекса \"Безопасный город\" в органах местного самоуправления","\"вп\"","Р.Б.","1000",1000,1000,{"$f":"I25","v":1000},{"$f":"I25","v":1000},1,1,1000,1000,0,1000,1000,{"$f":"Q25*1035/1052.6","v":983.27949838495158},"ед. товара","Модернизация и сервисное обслуживание систем видеонаблюдения АПК \"Безопасный город\" в городе Горно-Алтайске. Мероприятия направлены на снижение преступности на улицах и в общественных местах"]
[16,null,null,null,null,"М.Б.","52,6",52.6,52.6,{"$f":"I26","v":52.6},{"$f":"I26","v":52.6},1,1,52.6,52.6,0,52.6,52.6,{"$f":"Q26*1035/1052.6","v":51.720501615048455},"ед.товара "]
[17,"1","9","Оснащение комплексами видеофиксации нарушений правил дорожного движения в населенных пунктах и их обслуживание на автомобильных дорогах регионального и местного значения","\"вп\"","Р.Б.","0",0,0,0,0,0,0,0,0,0,0,0,0,"-","В связи с отсутствием финансирования, мероприятие не проводилось"]
[18,null,null,null,null,"М.Б.","0",0,0,0,0,0,0,0,0,0,0,0,0,"-"]
[20,"1","10","Изготовление баннеров, листовок по соблюдению правил личной и имущественной безопасности","\"вп\"","Р.Б.","0",0,0,0,0,0,0,0,0,0,0,0,0,"-","В связи с отсутствием финансирования, мероприятие не проводилось"]
[21,"1","11","Изготовление и распространение информационных стендов \"Ваш участковый\"","\"вп\"","Р.Б.","0",0,0,0,0,0,0,0,0,0,0,0,0,"-","В связи с отсутствием финансирования, мероприятие не проводилось"]
[22,"1","12","Создание тематических передач по пропаганде культуры поведения участников дорожного движения","2/9","Р.Б.","500",500,500,{"$f":"I31","v":500},{"$f":"I31","v":500},1,1,500,266,0,500,{"$f":"O31","v":266},{"$f":"10+16+10","v":36},"кол-во передач","Создание тематических передач по пропаганде культуры поведения участников дорожного движения."]
[23,"1","13","Проведение широкомасштабных акций \"Внимание дети!\", Внимание пешеход!\", \"Зебра\". Привлечение информационных и рекламных агентств к проведению профилактических акций, направленных на укрепление дисциплины участников дорожного движения, размещение материалов в средствах массовой информации по вопросам безопасности дорожного движения","\"вп\"","Р.Б.","114",114,114,0,0,0,0,114,96.2,0,114,96.2,{"$f":"1+2+2+1+11+11","v":28},"кол-во акций","Проведение акций: \"Автокресло-детям!\", \"День памяти жертв ДТП\", \"День матери\", \"День инвалидов\", \"Стань заметнее\", операция \"Внимание дети!\".Мероприятия направлены на снижение детского дорожно-транспортного травматизма. "]
[24,"1","14","Проведение конкурсов по безопасности дорожного движения: «Автоледи», «Безопасное колесо», конкурс среди журналистов на лучший материал по безопасности дорожного движения","\"вп\"","Р.Б.","200",200,200,0,0,0,0,200,0,0,200,0,{"$f":"1+1","v":2},"кол-во конкурсов","Организация и проведение регионального конкурса в 2013 году \"Безопасное колесо\"в с.Покровское, Одинцовского р-она, Московской области. "]
[25,"1","15","Проведение конкурсов детских творческих работ по правилам дорожного движения (конкурсы рисунков, сочинений)","\"вп\"","Р.Б.","30",30,30,0,0,0,0,30,30,0,30,30,{"$f":"10+11","v":21},"кол-во конкурсов","Проведение республиканских конкурсов творческих работ по ПДД:  агитбригад,  конкурса стихотворений . Мероприятия направлены на снижения и профилактику детского дорожно-транспортного травматизма"]
[26,"1","16","Организация по оснащению детских ранцев и школьной одежды световозвращающими элементами в целях предотвращения дорожно-транспортных происшествий с участием детей в темное время суток","\"вп\"","Р.Б.","0",0,0,0,0,0,0,0,0,0,0,0,0,"-","В связи с отсутствием финансирования, мероприятие не проводилось"]
[27,"1","17","Создание и использование социальной рекламы по вопросам безопасности дорожного движения","\"вп\"","Р.Б.","200",200,200,0,0,0,0,200,124.5,0,200,124.5,100,"кол-во мероприятий","Мероприятия: размещение аудио (5) и видео (10) роликов на телеканале ГТРК, распространение печатной продукции, подписка газет:\"Добрая дорога детства\" 250 экземпляров для школ, ЦДТ, кабинетов БДД, летних детских лагерей, сотрудников пропаганды, \"Стоп газета\" - 90 экземпляров. Мероприятия направлены на снижение аварийности на улицах и дорогах, сокращение количества лиц, пострадавших в результате дорожно-транспортных происшествий.  "]
[28,"1","18","Создание информационно-пропагандистской продукции, организация тематической социальной рекламы","\"вп\"","Р.Б.",null,0,0,0,0,0,0,0,0,0,0,0,0,"-","В связи с отсутствием финансирования, мероприятие не проводилось"]
[30,"1","19","Участие во всероссийских массовых мероприятиях с детьми (конкурсы -фестивали \"Безопасное колесо\", профильные смены отрядов юных инспекторов движения, конкурсы среди общеобразовательных учреждений по профилактике детского дорожно-транспортного травматизма)","3/12","Р.Б.","240",240,240,0,0,0,0,240,110.3,0,240,110.3,2,"конкурса","Участие команды Республики Алтай ( 4 чел.) во Всероссийском конкурсе \"Безопасное колесо\"  в 2013 году в г. Москве. Поездка в лагерь \"Орленок\" - победители конкурса 2012 года (4 человека), профильная смена."]
[39,"1","20","Внедрение современных образцов аварийно-спасательной техники для ликвидации последствий дорожно-транспортных происшествий","\"вп\"","Р.Б.","0",0,0,0,0,0,0,0,0,0,0,0,0,"-","В связи с отсутствием финансирования, мероприятие не проводилось"]
[40,"1","21","Заключение договоров об охране объектов государственных образовательных учреждений Республики Алтай с помощью пульта централизованного наблюдения подразделений вневедомственной охраны в г. Горно-Алтайске и с. Майма (обеспечение оплаты за услуги)","\"вп\"","Р.Б.","0",0,0,0,0,0,0,0,0,0,0,0,0,"-","В связи с отсутствием финансирования, мероприятие не проводилось"]
[41,"1","22","Установка тревожной сигнализации в государственных образовательных учреждениях Республики Алтай для экстренного вызова наряда полиции вневедомственной охраны","\"вп\"","Р.Б.","0",0,0,0,0,0,0,0,0,0,0,0,0,"-","В связи с отсутствием финансирования, мероприятие не проводилось"]
[42,"1","23","Установка систем видеонаблюдения в государственных образовательных учреждениях Республики Алтай, расположенных на территории г. Горно-Алтайска и с. Майма","\"вп\"","Р.Б.","130",130,130,{"$f":"I42","v":130},{"$f":"I42","v":130},2,2,130,0,0,130,0,2,"учреждения","Установка систем видеонаблюдения  в АОУ ДОД РА \"Республиканский Центр дополнительного образования детей\", АОУ СПО РА \"Горно-Алтайский техникум строительной индустрии и сервиса\" направленные на обеспечение безопасности учащихся и работников. "]
[43,"1","24","Организация пропускного режима в государственных образовательных учреждениях Республики Алтай, расположенных на территории г. Горно-Алтайска и с. Майма, постом военизированной охраны филиала Федерального государственного унитарного предприятия \"Охрана\" Министерства внутренних дел Российской Федерации (15 детских садов и 10 школ)","\"вп\"","Р.Б.","0",0,0,0,0,0,0,0,0,0,0,0,0,"-","В связи с отсутствием финансирования, мероприятие не проводилось"]
[44,"1","25","Выплата вознаграждения за добровольную сдачу незаконно хранящегося огнестрельного оружия, боеприпасов, взрывчатых веществ и взрывчатых устройств","\"вп\"","Р.Б.","100",100,100,{"$f":"I44","v":100},{"$f":"I44","v":100},11,11,100,79.03,0,100,{"$f":"O44","v":79.03},30,"-","На основании заключенных соглашений с 11 Муниципальными образованиями Республики Алтай и Министерством регионального развития, произведена выплата вознаграждения в соответствии с утвержденными лимитами "]
[45,"1","26","Материально-техническое обеспечение бюджетного учреждения здравоохранения Республики Алтай \"Центр медицины катастроф\" для оказания специализированной (санитарно-авиационной) скорой медицинской помощи лицам, пострадавшим в результате дорожно-транспортных происшествий","\"вп\"","Р.Б.","500",0,0,0,0,0,0,0,0,0,0,0,0,"-","В связи с отсутствием финансирования, мероприятие не проводилось"]
[46,"1","27","Организационное, методическое и техническое обеспечение процесса обучения водителей, сотрудников служб, участвующих в ликвидации последствий дорожно-транспортных происшествий, приемам оказания первой медицинской помощи лицам, пострадавшим в результате дорожно-транспортных ","\"вп\"","Р.Б.","0",0,0,0,0,0,0,0,0,0,0,0,0,"-","В связи с отсутствием финансирования, мероприятие не проводилось"]
[47,"1","28","Повышение квалификации медицинских работников, оказывающих медицинскую помощь пострадавшим при дорожно-транспортных происшествиях в Республике Алтай","\"вп\"","Р.Б.","0",0,0,0,0,0,0,0,0,0,0,0,0,"-","В связи с отсутствием финансирования, мероприятие не проводилось"]
[51,"1","29","Предоставление субсидий из республиканского бюджета Республики Алтай организациям, осуществляющим деятельность в сфере почтовой связи, на возмещение затрат, связанных с приемом, обработкой, перевозкой, доставкой (вручением) постановлений о наложении административных штрафов за нарушение Правил дорожного движения Российской Федерации","\"вп\"","Р.Б.","3000",3000,3000,{"$f":"I48","v":3000},{"$f":"I48","v":3000},1,1,2038.2,955.995,0,2038.2,{"$f":"O48","v":955.995},54754,"ед.постановлений","Предоставление субсидий из республиканского бюджета Республики Алтай организациям, осуществляющим деятельность в сфере почтовой связи, на возмещение затрат, связанных с приемом, обработкой, перевозкой, доставкой (вручением) постановлений о наложении административных штрафов"]
[52,"1","30","Приобретение автомобильных весов для измерения весовой нагрузки транспортных средств на автомобильных дорогах регионального значения","\"вп\"","Р.Б.","0",0,0,0,0,0,0,0,0,0,0,0,0,"-","В связи с отсутствием финансирования, мероприятие не проводилось"]
[53,"1","31","Модернизация автоматизированных систем управления движением светофорных объектов (оснащение светодиодными светофорами, экологическими датчиками, табло обратного отсчета времени разрешающего сигнала, дополнительными звуковыми сопровождающими устройствами)","\"вп\"","Р.Б.","0",0,0,0,0,0,0,0,0,0,0,0,0,"-","В связи с отсутствием финансирования, мероприятие не проводилось"]
[54,null,null,null,null,"М.Б.","0",0,0,0,0,0,0,0,0,0,0,0,0,"-"]
[55,"1","32","Нанесение горизонтальной дорожной разметки на дорогах регионального значения","\"вп\"","Р.Б.","5088,6",5088.6000000000004,5088.6000000000004,{"$f":"I52","v":5088.6000000000004},{"$f":"I52","v":5088.6000000000004},0,0,5088.6000000000004,0,0,5088.6000000000004,{"$f":"O52","v":0},473,"км.","Выполнено 473 км. нанесения горизонтальной разметки. Мероприятия направлены на снижение аварийности на улицах и дорогах, сокращение количества лиц, пострадавших в результате дорожно-транспортных происшествии, снижение скоростного режима в аварийно-опасных местах"]
[56,"1","33","Устройство шероховатой поверхностной обработки на дорогах регионального значения","\"вп\"","Р.Б.","31914,3",31914.3,31914.3,{"$f":"I53","v":31914.3},{"$f":"I53","v":31914.3},0,0,31914.3,0,0,31914.3,0,24.3,"км.","В 2013 году, выполнено устройство ШПО на а/д \"Горно-Алтайск\" на 24,3 км."]
[57,"1","34","Установка дорожных знаков на дорогах регионального значения","\"вп\"","Р.Б.","1063,0",1063,1063,{"$f":"I54","v":1063},{"$f":"I54","v":1063},0,0,1063,{"$f":"427.596+483.119+141.147","v":1051.8620000000001},0,1063,{"$f":"O54","v":1051.8620000000001},258,"шт.","В 2013 году произведена установка недостающих дорожных (километровых) знаков на а/д \"Черга-Беш-Озек - Усть-Кан-Талда-Карагай - граница Казахстана с подъездом Талда-Тюнгур (Природный парк \"Белуха\") км 90+000-164+000; 0+000-120+000; 165+000-185+000. Всего установлено - 258 шт дорожных знаков."]
[58,"1","35","Установка дорожных знаков повышенной яркости в местах массового перехода людей и в местах концентрации дорожно-транспортных происшествий 5.19.1, 5.19.2 на автомобильных дорогах регионального значения","\"вп\"","Р.Б.","0",0,0,0,0,0,0,0,0,0,0,0,0,"-","В связи с отсутствием финансирования, мероприятие не проводилось"]
[59,"1","36","Обустройство классов по безопасности дорожного движения, основ безопасности жизнедеятельности и других объектов для практического закрепления и отработки навыков безопасности дорожного движения","\"вп\"","Р.Б.","200",200,200,{"$f":"I56","v":200},{"$f":"I56","v":200},4,4,200,200,0,200,200,1,"кабинет","Оснащение кабинета. На базе АОУ ДОД РА \"Республиканский Центр дополнительного образования детей\" работает специализированный кабинет по ПДД, для обучения детей дошкольного и школьного возраста основам правил безопасного поведения на улицах."]
[60,"1","37","Устройство шумовых полос на проезжей части автомобильных дорог регионального значения","\"вп\"","Р.Б.","0",0,0,0,0,0,0,0,0,0,0,0,0,"-","В связи с отсутствием финансирования, мероприятие не проводилось"]
[62,"1","38","Приобретение и установка автоматизированного автодрома для обучения водителей для приятия первого этапа практического экзамена на право управления транспортным средством у кандидатов в водители","\"вп\"","Р.Б.","0",0,0,0,0,0,0,0,0,0,0,0,0,"-","В связи с отсутствием финансирования, мероприятие не проводилось"]
[63,"1","39","Материально-техническое обеспечение бюджетного учреждения здравоохранения \"Центр медицины катастроф\" для оказания специализированной скорой медицинской помощи лицам, пострадавшим в дорожно-транспортных происшествиях","\"вп\"","Р.Б.","0",0,0,0,0,0,0,0,0,0,0,0,0,"-","В связи с отсутствием финансирования, мероприятие не проводилось"]
[64,"1","40","Материально-техническое оснащение  бюджетного учреждения здравоохранения \"Центр медицины катастроф\" для оказания специализированной скорой медицинской помощи лицам, пострадавшим в дорожно-транспортных происшествиях","\"вп\"","Р.Б.","0",500,500,0,0,0,0,500,0,0,500,0,1,"здание","Проведение капитального ремонта здания"]
[65,"1","41","Материально-техническое оснащение БУЗ РА \"Республиканская больница\" (нейрохирургическое отделение, рентгеноперационная, 1 этаж хирургического корпуса)","\"вп\"","Р.Б.","1311,6","1311,7",1311.7,0,0,0,0,"1311,8","1311,9",0,"1311,8",{"$f":"O61","v":"1311,9"},1,"здание","Проведение капитального ремонта здания"]
[67,"1","42","Материально-техническое оснащение БУЗ РА \"Онгудайская ЦРБ\" ","\"вп\"","Р.Б.","0",0,0,0,0,0,0,0,0,0,0,0,0,"-","В связи с отсутствием финансирования, мероприятие не проводилось"]
[69,"1","43","Материально-техническое оснащение БУЗ РА \"Майминская ЦРБ\" ","\"вп\"","Р.Б.","0",0,0,0,0,0,0,0,0,0,0,0,0,"-","В связи с отсутствием финансирования, мероприятие не проводилось"]
[71,"1","44","Материально-техническое оснащение БУЗ РА \"Шебалинская ЦРБ\" ","\"вп\"","Р.Б.","0",0,0,0,0,0,0,0,0,0,0,0,0,"-","В связи с отсутствием финансирования, мероприятие не проводилось"]
[73,"1","45","Материально-техническое оснащение БУЗ РА \"Турочакская ЦРБ\" для оказания специализированной скорой медицинской помощи лицам, пострадавшим в дорожно-транспортных происшествиях","\"вп\"","Р.Б.","0",0,0,0,0,0,0,0,0,0,0,0,0,"-","В связи с отсутствием финансирования, мероприятие не проводилось"]
[74,"1","46","Материально-техническое оснащение БУЗ РА \"Усть-Коксинская ЦРБ\" для оказания специализированной скорой медицинской помощи лицам, пострадавшим в дорожно-транспортных происшествиях","\"вп\"","Р.Б.","0",0,0,0,0,0,0,0,0,0,0,0,0,"-","В связи с отсутствием финансирования, мероприятие не проводилось"]
[75,"1","47","Материально-техническое оснащение БУЗ РА \"Акташская больница\" (отделение скорой помощи)","\"вп\"","Р.Б.","0",0,0,0,0,0,0,0,0,0,0,0,0,"-","В связи с отсутствием финансирования, мероприятие не проводилось"]
[77,"1","48","Материально-техническое оснащение БУЗ РА \"Республиканская детская больница\" (травматологическое отделение)","\"вп\"","Р.Б.","0",0,0,0,0,0,0,0,3000,0,0,{"$f":"O68","v":3000},0,"-","В связи с отсутствием финансирования, мероприятие не проводилось"]
[80,"1","49","Материально-техническое оснащение БУЗ РА \"Чемальская ЦРБ\" ","\"вп\"","Р.Б.","0",0,0,0,0,0,0,0,0,0,0,0,0,"-","В связи с отсутствием финансирования, мероприятие не проводилось"]
[82,"1","50","Материально-техническое обеспечение АУ РА \"Автобаза \"Медавтотранс\"","\"вп\"","Ф.Б.","0",6457.4,6457.4,{"$f":"I70","v":6457.4},{"$f":"I70","v":6457.4},2,2,6457.4,0,0,6457.4,0,0,"-","В связи с отсутствием финансирования, мероприятие не проводилось"]
[83,"1","51","Оснащение дошкольных образовательных учреждений   Республики Алтай оборудованием, позволяющим в игровой форме формировать навыки безопасного поведения на улично-дорожной сети","\"вп\"","Р.Б.","0",0,0,0,0,0,0,0,0,0,0,0,0,"-","В связи с отсутствием финансирования, мероприятие не проводилось"]
["Добавлять мероприятия выше этой строки"]
[]
[]
[]
[]
["              Должностное лицо администрации субъекта РФ, ответственное за реализацию федеральной целевой программы",null,null,null,null,null,null,null,null,null,null,"Р.Р. Пальталлер"]
[null,null,null,null,null,null,null,null,null,null,null,null,"(Ф.И.О.)"]
["              Должностное лицо, ответственное за составление формы",null,null,null,null,null,null,null,null,null,null,"     О.Г. Петлина"]
[null,null,null,null,null,null,null,null,null,null,null,null,"(Ф.И.О.)"]
[null,null,null,null,null,null,null,null,null,null,null,null,"minregion@mail.ru"]
[null,null,null,null,null,null,null,null,null,null,null,null,null,"(адрес электронной почты)"]
[null,null,null,null,null,null,null,null,null,null,null,null,"8 (38822) 2-23-31"]
[null,null,null,null,null,null,null,null,null,null,null,null,null,"(номер контактного телефона)"]
[]
[]
[]
[]
[]
[]
[]
[]
[]
[]
[]
[]
[]
[]
[]
[]
[]
[]
[]
[null,null,null,null,null,null,null,null,null,null,"№ по Конституции","Наименование субъекта РФ","Код ОКАТО","Фед. Округ"]
[null,null,null,null,null,null,null,null,null,null,"Нет","-Выбрать субъект РФ из списка (переключатель справа)","Нет","Нет"]
[null,"Полный перечень мероприятий ФЦП",null,null,null,null,null,null,null,null,22,"Алтайский край",1,"СибФО"]
["КОД","НАИМЕНОВАНИЕ",null,"ВИД РАСХОДОВ",null,null,null,null,null,null,31,"Амурская область",10,"ДВФО"]
["2/1","Выполнение комплексных научных исследований с применением методов математического анализа в области систематизации и оценки эффективности средств повышения и контроля безопасности дорожного движения, в том числе разработка типовых решений и макетов для практического внедрения  наиболее эффективных средств в практику профилактики дорожно-транспортных происшествий на федеральном, региональном и муниципальном уровнях",null,"НИОКР",null,null,null,null,null,null,32,"Архангельская область",11,"СЗФО"]
["2/2","Проведение научных исследований, разработка условий и требований по нормативно-правовому обеспечению внедрения и развития сервисов интеллектуальных транспортных систем в сфере обеспечения безопасности дорожного движения, повышения качества функционирования региональных транспортных систем и работы автомобильного транспорта",null,"НИОКР",null,null,null,null,null,null,33,"Астраханская область",12,"ЮФО"]
["2/3","Разработка научно-обоснованных предложений по совершенствованию системы подготовки и непрерывного повышения квалификации специалистов, ответственных за обеспечение безопасного функционирования автомобильного транспорта, и ее гармонизации с международной системой профессиональной подготовки. Разработка курсов дистанционного обучения и методики оценки освоения учебных материалов при дистанционной форме обучения",null,"НИОКР",null,null,null,null,null,null,34,"Белгородская область",14,"ЦФО"]
["2/4","Разработка комплексного проекта совершенствования системы подготовки водителей транспортных средств различных категорий, включая водителей из числа лиц с ограниченными физическими возможностями, организационно-методических рекомендаций, программ, учебных и методических пособий, образовательных ресурсов (в том числе в электронном виде) по обучению вождению транспортных средств различных категорий",null,"НИОКР",null,null,null,null,null,null,35,"Брянская область",15,"ЦФО"]
["2/5","Оснащение системами автоматического контроля и выявления нарушений правил дорожного движения улично-дорожной сети городов и населенных пунктов, дорог регионального и муниципального значения (не менее 3936 комплексов)",null,"Капитальные вложения",null,null,null,null,null,null,36,"Владимирская область",17,"ЦФО"]
["2/6","Техническое перевооружение, строительство, реконструкция центров по подготовке (переподготовке), дополнительного профессионального образования, повышения квалификации специалистов в области обеспечения безопасности дорожного движения (не менее 10,2 тыс. кв.м.)",null,"Капитальные вложения",null,null,null,null,null,null,37,"Волгоградская область",18,"ЮФО"]
["2/7","Создание 3 федеральных центров по подготовке и повышению квалификации специалистов, занимающихся обучением водителей транспортных средств, специалистов по приему квалификационных экзаменов на право управления транспортными средствами различных категорий и подкатегорий, водителей транспортных средств различных категорий, включая водителей  транспортных средств из числа людей с ограниченными физическими возможностями, подготовке и повышению квалификации специалистов по обучению управлению транспортными средствами лиц с ограниченными физическими возможностями на базе образовательных организаций высшего образования (до 3,0 тыс. кв.м. учебных помещений (зданий) и 30,0 тыс. кв.м. плоскостных сооружений (оборудованные площадки по обучению)",null,"Капитальные вложения",null,null,null,null,null,null,38,"Вологодская область",19,"СЗФО"]
["2/8","Создание и тиражирование и передача конечным пользователям учебно-методических и наглядных пособий, учебных фильмов, игр, программ для участников дорожного движения разных возрастных категорий, в том числе с использованием мультимедийных средств, освещающих вопросы безопасности дорожного движения",null,"Прочие нужды",null,null,null,null,null,null,39,"Воронежская область",20,"ЦФО"]
["2/9","Проведение информационно-пропагандистских кампаний, использующих наиболее действенные каналы коммуникации, с целью повышения грамотности, ответственности и уровня самосознания участников дорожного движения и профилактики факторов риска, влияющих на количество и тяжесть дорожно-транспортных происшествий",null,"Прочие нужды",null,null,null,null,null,null,77,"г. Москва",45,"ЦФО"]
["2/10","Подготовка и создание информационно- пропагандистских теле- радиопрограмм, направленных на участников дорожного движения для последующего размещения на федеральных, региональных и кабельных телевизионных каналах, на радиостанциях",null,"Прочие нужды",null,null,null,null,null,null,78,"г. Санкт-Петербург",40,"СЗФО"]
["2/11","Организация в печатных и электронных средствах массовой информации специальных тематических рубрик для систематического освещения проблемных вопросов по безопасности дорожного движения, выпуск специализированной печатной продукции",null,"Прочие нужды",null,null,null,null,null,null,79,"Еврейская автономная область",99,"ДВФО"]
["2/12","Подготовка и издание учебно-методических и наглядных пособий, фильмов и других материалов, а также издание комплектов учебно-методических материалов по курсу дистанционного обучения специалистов, ответственных за обеспечение безопасного функционирования автомобильного транспорта",null,"Прочие нужды",null,null,null,null,null,null,23,"Забайкальский край",76,"СибФО"]
["2/13","Материально-техническое обеспечение Федерального бюджетного учреждения «Агентство автомобильного транспорта» (ФБУ \"Росавтотранс\") (оборудование, программные комплексы) в целях подготовки водителей, повышения квалификации инженерно-технического и руководящего состава автотранспортных предприятий, а также обучения контрольно-надзорных органов в сфере автомобильного транспорта",null,"Прочие нужды",null,null,null,null,null,null,40,"Ивановская область",24,"ЦФО"]
["2/14","Ежегодное проведение всероссийского конкурса профессионального мастерства водителей транспортных средств,  проведение комплексной информационно-пропагандистской кампании, направленной на водителей коммерческого грузового и пассажирского транспорта с целью повышения их ответственности и культуры поведения на дороге,  подготовка телепрограмм ",null,"Прочие нужды",null,null,null,null,null,null,41,"Иркутская область",25,"СибФО"]
["2/15","Учебно-методическое обеспечение (техническими средствами обучения, наглядными, учебными и методическими пособиями, электронными образовательными ресурсами) федеральных центров по подготовке и повышению квалификации специалистов, занимающихся обучением водителей транспортных средств, специалистов по приему квалификационных экзаменов на право управления транспортными средствами различных категорий и подкатегорий, водителей транспортных средств различных категорий, включая водителей  транспортных средств из числа людей с ограниченными физическими возможностями",null,"Прочие нужды",null,null,null,null,null,null,7,"Кабардино-Балкарская Республика",83,"СКФО"]
["2/16","Разработка организационно-методических рекомендаций, обеспечивающих внедрение программ подготовки и переподготовки водителей транспортных средств различных категорий и подкатегорий, мониторинг их применения, в том числе водителей из числа лиц с ограниченными физическими возможностями, специальных методических рекомендаций для создания федеральных центров по подготовке и повышению квалификации специалистов, занимающихся обучением водителей транспортных средств, а также специалистов по приему квалификационных экзаменов на право управления транспортными средствами различных категорий и подкатегорий, по подготовке и переподготовке водителей различных категорий, водителей из числа лиц с ограниченными физическими возможностями",null,"Прочие нужды",null,null,null,null,null,null,42,"Калининградская область",27,"СЗФО"]
["2/17","Издание и рассылка научно-методических материалов, образовательных ресурсов (в том числе электронных) для совершенствования подготовки водителей из числа лиц с ограниченными физическими возможностями",null,"Прочие нужды",null,null,null,null,null,null,43,"Калужская область",29,"ЦФО"]
["3/1","Разработка комплексного проекта профилактики детского дорожно-транспортного травматизма на период 2013-2020 гг., программ, учебно-методических пособий, образовательных ресурсов (в том числе в электронном виде), разработка специализированного интернет-портала по обучению безопасному участию в дорожном движении учащихся, воспитанников дошкольных образовательных организаций и общеобразовательных организаций, организаций дополнительного образования, в том числе с использованием инновационных образовательных продуктов и современных компьютерных технологий",null,"НИОКР",null,null,null,null,null,null,24,"Камчатский край",30,"ДВФО"]
["3/2","Разработка модульных программ повышения квалификации педагогических работников дошкольных образовательных организаций и общеобразовательных организаций, организаций дополнительного образования по вопросам обучения учащихся, воспитанников навыкам безопасного участия в дорожном движении и рекомендаций по их использованию",null,"НИОКР",null,null,null,null,null,null,9,"Карачаево-Черкесская Республика",91,"СКФО"]
["3/3","Разработка оборудования (уголки по правилам дорожного движения, тренажеры, компьютерные программы и т.д.) для образовательных организаций с целью использования их в процессе обучения детей безопасному участию в дорожном движении",null,"НИОКР",null,null,null,null,null,null,44,"Кемеровская область",32,"СибФО"]
["3/4","Разработка программ, учебно-методических материалов по обучению вождению транспортных средств в системе дополнительного образования детей",null,"НИОКР",null,null,null,null,null,null,45,"Кировская область",33,"ПФО"]
["3/5","Приобретение мобильных автогородков для организаций в субъектах Российской Федерации, осуществляющих деятельность по формированию у детей дошкольного и школьного возраста навыков безопасного поведения на улично-дорожной сети (закупка не менее 269 мобильных автогородков)",null,"Капитальные вложения",null,null,null,null,null,null,46,"Костромская область",34,"ЦФО"]
["3/6","Создание федеральных экспериментальных центров (полигонов) \"Детский автогород\" (не менее 3 центров с общей территорией до 4,5 тыс. кв.м учебных помещений (зданий) и 60,0 тыс. кв.м плоскостных сооружений (оборудованные площадки автогородов)",null,"Капитальные вложения",null,null,null,null,null,null,25,"Краснодарский край",3,"ЮФО"]
["3/7","Строительство детских автогородков, организация на их основе базовых учебно-методических центров по изучению детьми, а также педагогическим составом общеобразовательных учреждений, учреждений дополнительного образования детей и дошкольных образовательных учреждений основ безопасного участия в дорожном движении (не менее 40 автогородков, не менее 20 тыс.кв.м.)*",null,"Капитальные вложения",null,null,null,null,null,null,26,"Красноярский край",4,"СибФО"]
["3/8","Приобретение для дошкольных образовательных учреждений оборудования, позволяющего в игровой форме формировать навыки безопасного поведения на улично- дорожной сети (закупка не менее 1390 комплектов учебного оборудования)",null,"Прочие нужды",null,null,null,null,null,null,47,"Курганская область",37,"УрФО"]
["3/9","Обеспечение проведения тематических информационно- пропагандистских мероприятий, межгосударственных слетов, всероссийских конкурсов, фестивалей с несовершеннолетними участниками дорожного движения, в том числе общественными формированиями детей",null,"Прочие нужды",null,null,null,null,null,null,48,"Курская область",38,"ЦФО"]
["3/10","Изготовление и распространение световозвращающих приспособлений в среде дошкольников и учащихся младших классов образовательных учреждений (не менее 15 млн. штук)",null,"Прочие нужды",null,null,null,null,null,null,49,"Ленинградская область",41,"СЗФО"]
["3/11","Разработка организационно-методических рекомендаций, обеспечивающих функционирование системы обучения безопасному участию в дорожном движении и профилактики детского дорожно-транспортного травматизма, а также организационно-методических рекомендаций и образовательных ресурсов, обеспечивающих внедрение программ и организацию обучения вождению транспортных средств различных категорий в образовательных организациях и организациях дополнительного образования, обеспечение деятельности специализированного интернет-портала по обучению безопасному участию в дорожном движении учащихся, воспитанников дошкольных образовательных организаций и общеобразовательных организаций, организаций дополнительного образования",null,"Прочие нужды",null,null,null,null,null,null,50,"Липецкая область",42,"ЦФО"]
["3/12","Проведение всероссийских массовых мероприятий с детьми (конкурсы-фестивали отрядов юных инспекторов движения «Безопасное колесо», профильные смены активистов отрядов юных инспекторов движения, чемпионаты юношеских автошкол по автомногоборью, конкурсы образовательных организаций по профилактике детского дорожно-транспортного травматизма) по профилактике детского дорожно-транспортного травматизма и обучению безопасному участию в дорожном движении",null,"Прочие нужды",null,null,null,null,null,null,51,"Магаданская область",44,"ДВФО"]
["3/13","Издание и рассылка научно-методических материалов, печатных и электронных учебных пособий, образовательных ресурсов для дошкольных образовательных организаций, общеобразовательных организаций и организаций дополнительного образования по обучению детей безопасному участию в дорожном движении (обеспечение образовательных организаций пилотными комплектами учебных пособий и программ), в том числе учебно-методических пособий по работе с родителями и детьми в целях профилактики детских дорожно-транспортных происшествий, проведение родительского Всеобуча, семейных конкурсов на знание правил дорожного движения",null,"Прочие нужды",null,null,null,null,null,null,52,"Московская область",46,"ЦФО"]
["3/14","Мониторинг состояния материальной и учебно-методической базы общеобразовательных организаций по обучению детей правилам дорожного движения и формированию у них навыков безопасного участия в дорожном движении",null,"Прочие нужды",null,null,null,null,null,null,53,"Мурманская область",47,"СЗФО"]
["3/15","Реализация типовых проектов мобильных автогородков (создание опытных образцов мобильных автогородков и проведение их апробации) для обучения с их помощью детей и педагогического состава общеобразовательных и дошкольных образовательных организаций, организаций дополнительного образования основам безопасного участия в дорожном движении (не менее 6 мобильных автогородков)",null,"Прочие нужды",null,null,null,null,null,null,80,"Ненецкий автономный округ",11100,"СЗФО"]
["3/16","Учебно-методическое обеспечение (техническими средствами обучения, наглядными, учебными и методическими пособиями, электронными образовательными ресурсами) федеральных экспериментальных центров (полигонов) «Детский автогород»",null,"Прочие нужды",null,null,null,null,null,null,54,"Нижегородская область",22,"ПФО"]
["3/17","Повышение квалификации (в том числе по модульным курсам) преподавательского состава общеобразовательных организаций, организаций дополнительного образования и дошкольных образовательных организаций в сфере формирования у детей навыков безопасного участия в дорожном движении",null,"Прочие нужды",null,null,null,null,null,null,55,"Новгородская область",49,"СЗФО"]
["3/18","Оснащение техническими средствами обучения, оборудованием и учебно-методическими материалами детских автогородков*",null,"Прочие нужды",null,null,null,null,null,null,56,"Новосибирская область",50,"СибФО"]
["4/1","Проведение научных исследований и разработка рекомендаций по возможности использования современных систем повышения активной безопасности автомобилей с учетом российских условий эксплуатации. Разработка методов оценки эффективности электронных систем контроля устойчивости (EVSC) коммерческих транспортных средств на основании анализа соответствующих международных документов и с учетом российских условий эксплуатации",null,"НИОКР",null,null,null,null,null,null,57,"Омская область",52,"СибФО"]
["4/2","Проведение поисковых исследований и создание перспективных технологий по защите от поражения электрическим током на автомобилях с комбинированной энергетической установкой и электромобилях",null,"НИОКР",null,null,null,null,null,null,58,"Оренбургская область",53,"Пфо"]
["4/3","Проведение научных исследований в области пассивной безопасности транспортных средств, направленных на снижение травмирования водителей, пассажиров и пешеходов при дорожно-транспортных происшествиях",null,"НИОКР",null,null,null,null,null,null,59,"Орловская область",54,"ЦФО"]
["4/4","Проведение научных исследований с целью создания перспективной методологии подготовки водителей транспортных средств на базе компьютерных обучающих программ и модельного ряда автотренажеров различной степени сложности",null,"НИОКР",null,null,null,null,null,null,60,"Пензенская область",56,"ПФО"]
["4/5","Обоснование технических требований и адаптация конструкций транспортных средств с компонентами электронных систем, обеспечивающих выполнение перспективных требований технического законодательства в области безопасности колесных транспортных средств, посредством внедрения элементов интеллектуальных транспортных систем в целях повышения активной безопасности: системы автоматической регистрации параметров движения транспортных средств; системы регистрации параметров дорожно-транспортных происшествий; системы автоматического экстренного торможения (AEBS); системы предупреждения о выходе с полосы движения (LDWS); электронных систем контроля устойчивости и помощи водителю при экстренном торможении; систем мониторинга давления воздуха в шинах; систем контроля состояния водителя и т.п.",null,"Прочие нужды",null,null,null,null,null,null,27,"Пермский край",57,"ПФО"]
["4/6","Разработка прикладных программ моделирования движения транспортных средств для расчета параметров активной безопасности. Проведение виртуальных исследований движения транспортных средств с интеллектуальными системами активной безопасности в различных критических и экстремальных условиях",null,"Прочие нужды",null,null,null,null,null,null,28,"Приморский край",5,"ДВФО"]
["4/7","Материально-техническое, метрологическое и методологическое обеспечение проведения научных исследований по повышению активной и пассивной безопасности транспортных средств",null,"Прочие нужды",null,null,null,null,null,null,61,"Псковская область",58,"СЗФО"]
["5/1","Проведение научных исследований, направленных на разработку современных методов организации дорожного движения, в том числе основанных на исследовании влияния режимов движения транспортных потоков на безопасность дорожного движения",null,"НИОКР",null,null,null,null,null,null,1,"Республика Адыгея (Адыгея)",79,"ЮФО"]
["5/2","Разработка научно обоснованных предложений по созданию, развитию и функционированию единого парковочного пространства в городах Российской Федерации",null,"НИОКР",null,null,null,null,null,null,2,"Республика Алтай",84,"СибФО"]
["5/3","Разработка научно обоснованных предложений по системе оценки качества и эффективности организации дорожного движения в Российской Федерации",null,"НИОКР",null,null,null,null,null,null,3,"Республика Башкортостан",80,"ПФО"]
["5/4","Разработка методики проведения аудита безопасности движения при проектировании, строительстве и эксплуатации автомобильных дорог",null,"НИОКР",null,null,null,null,null,null,4,"Республика Бурятия",81,"СибФО"]
["5/5","Разработка нормативно-методических документов по созданию и развитию интеллектуальных транспортных систем",null,"НИОКР",null,null,null,null,null,null,5,"Республика Дагестан",82,"СКФО"]
["5/6","Строительство в местах повышенной аварийности в городах и населенных пунктах быстровозводимых конструкций надземных пешеходных переходов (не менее 300)",null,"Капитальные вложения",null,null,null,null,null,null,6,"Республика Ингушетия",26,"СКФО"]
["5/7","Реконструкция, строительство на участках улично- дорожной сети городов и населенных пунктов пешеходных ограждений, в том числе в зоне пешеходных переходов (не менее 809 км)",null,"Капитальные вложения",null,null,null,null,null,null,8,"Республика Калмыкия",85,"ЮФО"]
["5/8","Строительство, реконструкция, техническое перевооружение нерегулируемых пешеходных переходов, в том числе непосредственно прилегающих к дошкольным образовательным учреждениям, общеобразовательным учреждениям и учреждениям дополнительного образования детей, освещением, искусственными дорожными неровностями, светофорами Т.7, системами светового оповещения, дорожными знаками с внутренним освещением и светодиодной индикацией, Г-образными опорами, дорожной разметкой, в том числе с применением штучных форм и цветных дорожных покрытий, световозвращателями и индикаторами, а также устройствами дополнительного освещения и другими элементами повышения безопасности дорожного движения (не менее 2427 переходов)",null,"Капитальные вложения",null,null,null,null,null,null,10,"Республика Карелия",86,"СЗФО"]
["5/9","Строительство, реконструкция, техническое перевооружение светофорных объектов (не менее 2874)",null,"Капитальные вложения",null,null,null,null,null,null,11,"Республика Коми",87,"СЗФО"]
["5/10","Строительство, реконструкция, техническое перевооружение пересечений на автомобильных дорогах общего пользования федерального значения с целью увеличения пропускной способности и совершенствования организации дорожного движения (не менее 81 пересечения)",null,"Капитальные вложения",null,null,null,null,null,null,12,"Республика Марий Эл",88,"ПФО"]
["5/11","Строительство, реконструкция, техническое перевооружение (оборудование искусственным освещением) мест концентрации дорожно-транспортных происшествий на участках автомобильных дорог общего пользования федерального значения, проходящим по территориям населённых пунктов (не менее 144 мест концентрации ДТП)",null,"Капитальные вложения",null,null,null,null,null,null,13,"Республика Мордовия",89,"ПФО"]
["5/12","Разработка комплексных схем организации дорожного движения, проектов автоматизированных систем управления дорожным движением, организация работ по анализу доступности услуг транспортной системы  на сети автомобильных дорог, прилегающих к границам Санкт-Петербурга и Ленинградской области",null,"Прочие нужды",null,null,null,null,null,null,14,"Республика Саха (Якутия)",98,"ДВФО"]
["5/13","Проведение специализированных обучающих конференций и семинаров, посвященных вопросам совершенствования организации дорожного движения, освещение проблем организации дорожного движения в средствах массовой информации",null,"Прочие нужды",null,null,null,null,null,null,15,"Республика Северная Осетия - Алания",90,"СКФО"]
["5/14","Подготовка ежегодных аналитических обзоров и предложений по совершенствованию законодательного и нормативно-правового регулирования в сфере обеспечения безопасности автомобильных перевозок пассажиров и грузов",null,"Прочие нужды",null,null,null,null,null,null,16,"Республика Татарстан (Татарстан)",92,"ПФО"]
["5/15","Освещение проблем организации дорожного движения в средствах массовой информации",null,"Прочие нужды",null,null,null,null,null,null,17,"Республика Тыва",93,"СибФО"]
["5/16","Разработка программного продукта по информационному обмену данными между Росавтодором, ГИБДД и МЧС России",null,"Прочие нужды",null,null,null,null,null,null,19,"Республика Хакасия",95,"СибФО"]
["6/1","Проведение научных исследований, направленных на совершенствование нормативной и методической базы в области ликвидации последствий дорожно-транспортных происшествий",null,"НИОКР",null,null,null,null,null,null,62,"Ростовская область",60,"ЮФО"]
["6/2","Разработка научно-обоснованных предложений по совершенствованию информационно-аналитического обеспечения функционирования системы ликвидации последствий дорожно-транспортных происшествий",null,"НИОКР",null,null,null,null,null,null,63,"Рязанская область",61,"ЦФО"]
["6/3","Строительство учебно-тренировочного комплекса для подготовки сотрудников МЧС России и отработки действий экстренных служб, участвующих в ликвидации последствий дорожно-транспортных происшествий в Сибирском федеральном округе (п. Дивногорск, Красноярский край, не менее 1,7 тыс. кв.м.)    ",null,"Капитальные вложения",null,null,null,null,null,null,64,"Самарская область",36,"ПФО"]
["6/4","Строительство, реконструкция натурных площадок для отработки современных методов и способов ликвидации последствий дорожно-транспортных происшествий (не менее 800 кв.м)",null,"Капитальные вложения",null,null,null,null,null,null,65,"Саратовская область",63,"ПФО"]
["6/5","Внедрение современных образцов специальной  техники, инструмента, оборудования и технологий, предназначенных для проведения аварийно-спасательных работ, в подразделения МЧС России, привлекаемые к ликвидации последствий дорожно-транспортных происшествий",null,"Прочие нужды",null,null,null,null,null,null,66,"Сахалинская область",64,"ДВФО"]
["6/6","Практическая отработка вопросов взаимодействия экстренных служб и проведения аварийно-спасательных работ при ликвидации последствий дорожно-транспортных происшествий",null,"Прочие нужды",null,null,null,null,null,null,67,"Свердловская область",65,"УрФО"]
["6/7","Организационно-методическое и техническое обеспечение подразделений МЧС России, осуществляющих профессиональную подготовку и повышение квалификации личного состава, принимающего участие в ликвидации дорожно-транспортных происшествий",null,"Прочие нужды",null,null,null,null,null,null,68,"Смоленская область",66,"ЦФО"]
["6/8","Участие МЧС России в коммуникативных мероприятиях (конференциях, форумах, выставках и иных общественных  мероприятиях) в области безопасности дорожного движения и оказания помощи пострадавшим в дорожно-транспортных происшествиях",null,"Прочие нужды",null,null,null,null,null,null,29,"Ставропольский край",7,"СКФО"]
["6/9","Развитие Центра мониторинга ликвидации последствий дорожно-транспортных происшествий МЧС России",null,"Прочие нужды",null,null,null,null,null,null,69,"Тамбовская область",68,"ЦФО"]
["6/10","Разработка информационных и методических материалов для взрослой и детской аудиторий, информирующих о правилах оказания первой помощи пострадавшим в дорожно-транспортных происшествиях ",null,"Прочие нужды",null,null,null,null,null,null,70,"Тверская область",28,"ЦФО"]
["6/11","Тиражирование и распространение информационных и методических материалов для взрослой и детской аудиторий, информирующих о правилах оказания первой помощи пострадавшим в дорожно-транспортных происшествиях ",null,"Прочие нужды",null,null,null,null,null,null,71,"Томская область",69,"СибФО"]
["6/12","Оснащение медицинских организаций автомобилями скорой медицинской помощи класса «С» для оказания скорой медицинской помощи пациентам, пострадавшим при дорожно-транспортных происшествиях",null,"Прочие нужды",null,null,null,null,null,null,72,"Тульская область",70,"ЦФО"]
["6/13","Проведение всероссийского конкурса профессионального мастерства среди работников скорой медицинской помощи, медицины катастроф и работников экстренных оперативных служб по оказанию первой и медицинской помощи, пострадавших при дорожно-транспортных происшествиях",null,"Прочие нужды",null,null,null,null,null,null,73,"Тюменская область",71,"УрФО"]
["7/1","Разработка механизма по установлению индивидуальных целевых заданий для субъектов Российской Федерации по снижению уровня дорожно-транспортной аварийности на период до 2020 года и закреплению субсидиарной ответственности федерального центра и субъектов Российской Федерации за достижение целей деятельности по обеспечению безопасности дорожного движения",null,"НИОКР",null,null,null,null,null,null,18,"Удмуртская Республика",94,"ПФО"]
["7/2","Изучение существующих положений и построение научно-обоснованных моделей разграничения полномочий (сфер ответственности) органов исполнительной власти различного уровня, органов местного самоуправления",null,"НИОКР",null,null,null,null,null,null,74,"Ульяновская область",73,"ПФО"]
["7/3","Проведение комплексных научных исследований, направленных на создание аналитических методов поддержки принятия решений и управления в сфере безопасности дорожного движения с учетом федерального, регионального и местного аспектов, а также разработке механизмов комплексной оценки и анализа эффективности и результативности текущей и программной деятельности",null,"НИОКР",null,null,null,null,null,null,30,"Хабаровский край",8,"ДВФО"]
["7/4","Разработка действенных механизмов по привлечению внебюджетных финансовых средств в приоритетные проекты обеспечения безопасности дорожного движения, развитию государственно-частного партнерства, созданию эффективных саморегулируемых организаций, а также методов аутсорсинга в сфере обеспечения безопасности дорожного движения",null,"НИОКР",null,null,null,null,null,null,81,"Ханты-Мансийский автономный округ - Югра",71100,"УрФО"]
["7/5","Проведение научных исследований в области применения программных продуктов математического моделирования транспортных потоков при разработке комплексных схем организации дорожного движения, проектов организации дорожного движения, а также проектов автоматизированных систем управления дорожным движением. Разработка предложений по нормативному и методическому обеспечению использования программных продуктов при проектировании в сфере организации дорожного движения",null,"НИОКР",null,null,null,null,null,null,75,"Челябинская область",75,"УрФО"]
["7/6","Текущее управление Программой (содержание федерального казенного учреждения «Дирекция по управлению федеральной целевой программой «Повышение безопасности дорожного движения в 2006 - 2012 годах» )",null,"Прочие нужды",null,null,null,null,null,null,20,"Чеченская Республика",96,"СКФО"]
["7/7","Проведение специализированных семинаров, посвященных обмену опытом в деятельности по обеспечению безопасности дорожного движения и внедрению на региональном и муниципальном уровнях результатов научно-исследовательских и опытно- конструкторских работ, выполненных в рамках реализации Программы",null,"Прочие нужды",null,null,null,null,null,null,21,"Чувашская Республика - Чувашия",97,"ПФО"]
["7/8","Создание аналитических систем управления безопасностью дорожного движения МВД России",null,"Прочие нужды",null,null,null,null,null,null,82,"Чукотский автономный округ",82,"ДВФО"]
["7/9","Подготовка и периодическое повышение квалификации работников управлений госавтодорнадзора Ространснадзора по осуществлению контрольно-надзорных функций по соблюдению владельцами транспортных средств установленных требований по параметрам перевозок (режим труда и отдыха водителей, скоростной режим движения и т.п.) с применением цифровых тахографов",null,"Прочие нужды",null,null,null,null,null,null,83,"Ямало-Ненецкий автономный округ",71140,"УрФО"]
[" - ",null,null,null,null,null,null,null,null,null,76,"Ярославская область",78,"ЦФО"]
["источники финансирования"]
["РБ"]
["МБ"]
["ВБИ"]

{"sheet":"Перечень программ","index":2,"n_rows":7,"n_cols":3,"rows_kept":7,"cut":false,"hidden":false,"merged":[]}
[null,null,"Приложение к отчету"]
["Код пр.","Наименования региональной программы (подпрограммы), муниципальных программ (подпрограмм), направленных на сокращение числа лиц, погибающих в результате дорожно-транспортных происшествий, и повышение уровня безопасности дорожного движения","Наименование нормативно-правового акта, утвердившего программу, с учетом последней редакции"]
["вп","внепрограммные мероприятия"," - "]
[1,"Республиканская целевая программма «Комплексные меры профилактики правонарушений и повышения безопасности дорожного движения в Республике Алтай на 2012-2014 годы»","Постановление Правительства Республики Алтай от 15.12.2011 №382 \"Об утверждении республиканской целевой программы \"Комплексные меры\nпрофилактики правонарушений и повышения безопасности дорожного движения\nв Республике Алтай на 2012-2014 годы\"\n"]
[2]
[3]
["…"]

{"sheet":"Перечень мероприятий ФЦП","index":3,"n_rows":103,"n_cols":6,"rows_kept":103,"cut":false,"hidden":false,"merged":[[5,0,5,3],[10,0,10,3],[17,0,17,3],[22,0,22,3],[90,0,90,3],[77,0,77,3],[29,0,29,3],[43,0,43,3],[56,0,56,3],[64,0,64,3]]}
[]
[]
[]
[null,"Перечень софинансируемых мероприятий ФЦП\nв соответствии с Постановлением Правительства Российской Федерации от 03.10.2013 № 864."]
["КОД\n(графа 4)","НАИМЕНОВАНИЕ","ВИД РАСХОДОВ","Госзаказчик"]
["Мероприятия, направленные на развитие системы предупреждения опасного поведения участников дорожного движения\n(приложение № 2 к федеральной целевой программе \"Повышение безопасности дорожного движения в 2013 - 2020 годах)"]
["2/5","Оснащение системами автоматического контроля и выявления нарушений правил дорожного движения улично-дорожной сети городов и населенных пунктов, дорог регионального и муниципального значения (не менее 3936 комплексов)","Капитальные вложения","МВД России",1]
["2/8","Создание и тиражирование и передача конечным пользователям учебно-методических и наглядных пособий, учебных фильмов, игр, программ для участников дорожного движения разных возрастных категорий, в том числе с использованием мультимедийных средств, освещающих вопросы безопасности дорожного движения","Прочие нужды","МВД России",1]
["2/10","Подготовка и создание информационно- пропагандистских теле- радиопрограмм, направленных на участников дорожного движения для последующего размещения на федеральных, региональных и кабельных телевизионных каналах, на радиостанциях","Прочие нужды","МВД России",1]
["2/11","Организация в печатных и электронных средствах массовой информации специальных тематических рубрик для систематического освещения проблемных вопросов по безопасности дорожного движения, выпуск специализированной печатной продукции","Прочие нужды","МВД России",1]
["Мероприятия, направленные на обеспечение безопасного участия детей в дорожном движении\n(приложение № 3 к федеральной целевой программе \"Повышение безопасности дорожного движения в 2013 - 2020 годах)"]
["3/5","Приобретение мобильных автогородков для организаций в субъектах Российской Федерации, осуществляющих деятельность по формированию у детей дошкольного и школьного возраста навыков безопасного поведения на улично-дорожной сети (закупка не менее 269 мобильных автогородков)","Капитальные вложения","МВД России",1]
["3/7","Строительство детских автогородков, организация на их основе базовых учебно-методических центров по изучению детьми, а также педагогическим составом общеобразовательных учреждений, учреждений дополнительного образования детей и дошкольных образовательных учреждений основ безопасного участия в дорожном движении (не менее 40 автогородков, не менее 20 тыс.кв.м.)","Капитальные вложения","Минобрнауки России",1]
["3/8","Приобретение для дошкольных образовательных учреждений оборудования, позволяющего в игровой форме формировать навыки безопасного поведения на улично- дорожной сети (закупка не менее 1390 комплектов учебного оборудования)","Прочие нужды","МВД России",1]
["3/9","Обеспечение проведения тематических информационно- пропагандистских мероприятий, межгосударственных слетов, всероссийских конкурсов, фестивалей с несовершеннолетними участниками дорожного движения, в том числе общественными формированиями детей","Прочие нужды","МВД России",1]
["3/10","Изготовление и распространение световозвращающих приспособлений в среде дошкольников и учащихся младших классов образовательных учреждений (не менее 15 млн. штук)","Прочие нужды","МВД России",1]
["3/18","Оснащение техническими средствами обучения, оборудованием и учебно-методическими материалами детских автогородков","Прочие нужды","Минобрнауки России",1]
["Мероприятия, направленные на развитие системы организации движения транспортных средств и пешеходов и повышение безопасности дорожных условий\n(приложение № 5 к федеральной целевой программе \"Повышение безопасности дорожного движения в 2013 - 2020 годах)"]
["5/6","Строительство в местах повышенной аварийности в городах и населенных пунктах быстровозводимых конструкций надземных пешеходных переходов (не менее 300)","Капитальные вложения","МВД России",1]
["5/7","Реконструкция, строительство на участках улично- дорожной сети городов и населенных пунктов пешеходных ограждений, в том числе в зоне пешеходных переходов (не менее 809 км)","Капитальные вложения","МВД России",1]
["5/8","Строительство, реконструкция, техническое перевооружение нерегулируемых пешеходных переходов, в том числе непосредственно прилегающих к дошкольным образовательным учреждениям, общеобразовательным учреждениям и учреждениям дополнительного образования детей, освещением, искусственными дорожными неровностями, светофорами Т.7, системами светового оповещения, дорожными знаками с внутренним освещением и светодиодной индикацией, Г-образными опорами, дорожной разметкой, в том числе с применением штучных форм и цветных дорожных покрытий, световозвращателями и индикаторами, а также устройствами дополнительного освещения и другими элементами повышения безопасности дорожного движения (не менее 2427 переходов)","Капитальные вложения","МВД России",1]
["5/9","Строительство, реконструкция, техническое перевооружение светофорных объектов (не менее 2874)","Капитальные вложения","МВД России",1]
["Мероприятия, направленные на развитие системы оказания помощи пострадавшим в дорожно-транспортных происшествиях\n(приложение № 6 к федеральной целевой программе \"Повышение безопасности дорожного движения в 2013 - 2020 годах)"]
["6/12","Оснащение медицинских организаций автомобилями скорой медицинской помощи класса «С» для оказания скорой медицинской помощи пациентам, пострадавшим при дорожно-транспортных происшествиях","Прочие нужды","Минздрав России",1]
[]
[]
[]
[null,"Перечень мероприятий ФЦП\nв соответствии с Постановлением Правительства Российской Федерации от 03.10.2013 № 864 (без учета софинансируемых мероприятий).\nМероприятия сгруппированы по видам расходов и направлениям."]
["КОД\n(графа 4)","НАИМЕНОВАНИЕ","ВИД РАСХОДОВ","Госзаказчик"]
["Мероприятия, направленные на развитие системы предупреждения опасного поведения участников дорожного движения\n(приложение № 2 к федеральной целевой программе \"Повышение безопасности дорожного движения в 2013 - 2020 годах\")"]
["2/6","Техническое перевооружение, строительство, реконструкция центров по подготовке (переподготовке), дополнительного профессионального образования, повышения квалификации специалистов в области обеспечения безопасности дорожного движения (не менее 10,2 тыс. кв.м.)","Капитальные вложения","МВД России",null,1]
["2/7","Создание 3 федеральных центров по подготовке и повышению квалификации специалистов, занимающихся обучением водителей транспортных средств, специалистов по приему квалификационных экзаменов на право управления транспортными средствами различных категорий и подкатегорий, водителей транспортных средств различных категорий, включая водителей  транспортных средств из числа людей с ограниченными физическими возможностями, подготовке и повышению квалификации специалистов по обучению управлению транспортными средствами лиц с ограниченными физическими возможностями на базе образовательных организаций высшего образования (до 3,0 тыс. кв.м. учебных помещений (зданий) и 30,0 тыс. кв.м. плоскостных сооружений (оборудованные площадки по обучению)","Капитальные вложения","Минобрнауки России",null,1]
["2/9","Проведение информационно-пропагандистских кампаний, использующих наиболее действенные каналы коммуникации, с целью повышения грамотности, ответственности и уровня самосознания участников дорожного движения и профилактики факторов риска, влияющих на количество и тяжесть дорожно-транспортных происшествий","Прочие нужды","МВД России",null,1]
["2/12","Подготовка и издание учебно-методических и наглядных пособий, фильмов и других материалов, а также издание комплектов учебно-методических материалов по курсу дистанционного обучения специалистов, ответственных за обеспечение безопасного функционирования автомобильного транспорта","Прочие нужды","Минтранс России",null,1]
["2/13","Материально-техническое обеспечение Федерального бюджетного учреждения «Агентство автомобильного транспорта» (ФБУ \"Росавтотранс\") (оборудование, программные комплексы) в целях подготовки водителей, повышения квалификации инженерно-технического и руководящего состава автотранспортных предприятий, а также обучения контрольно-надзорных органов в сфере автомобильного транспорта","Прочие нужды","Минтранс России",null,1]
["2/14","Ежегодное проведение всероссийского конкурса профессионального мастерства водителей транспортных средств,  проведение комплексной информационно-пропагандистской кампании, направленной на водителей коммерческого грузового и пассажирского транспорта с целью повышения их ответственности и культуры поведения на дороге,  подготовка телепрограмм ","Прочие нужды","Минтранс России",null,1]
["2/15","Учебно-методическое обеспечение (техническими средствами обучения, наглядными, учебными и методическими пособиями, электронными образовательными ресурсами) федеральных центров по подготовке и повышению квалификации специалистов, занимающихся обучением водителей транспортных средств, специалистов по приему квалификационных экзаменов на право управления транспортными средствами различных категорий и подкатегорий, водителей транспортных средств различных категорий, включая водителей  транспортных средств из числа людей с ограниченными физическими возможностями","Прочие нужды","Минобрнауки России",null,1]
["2/16","Разработка организационно-методических рекомендаций, обеспечивающих внедрение программ подготовки и переподготовки водителей транспортных средств различных категорий и подкатегорий, мониторинг их применения, в том числе водителей из числа лиц с ограниченными физическими возможностями, специальных методических рекомендаций для создания федеральных центров по подготовке и повышению квалификации специалистов, занимающихся обучением водителей транспортных средств, а также специалистов по приему квалификационных экзаменов на право управления транспортными средствами различных категорий и подкатегорий, по подготовке и переподготовке водителей различных категорий, водителей из числа лиц с ограниченными физическими возможностями","Прочие нужды","Минобрнауки России",null,1]
["2/17","Издание и рассылка научно-методических материалов, образовательных ресурсов (в том числе электронных) для совершенствования подготовки водителей из числа лиц с ограниченными физическими возможностями","Прочие нужды","Минобрнауки России",null,1]
["2/1","Выполнение комплексных научных исследований с применением методов математического анализа в области систематизации и оценки эффективности средств повышения и контроля безопасности дорожного движения, в том числе разработка типовых решений и макетов для практического внедрения  наиболее эффективных средств в практику профилактики дорожно-транспортных происшествий на федеральном, региональном и муниципальном уровнях","НИОКР","МВД России",null,1]
["2/2","Проведение научных исследований, разработка условий и требований по нормативно-правовому обеспечению внедрения и развития сервисов интеллектуальных транспортных систем в сфере обеспечения безопасности дорожного движения, повышения качества функционирования региональных транспортных систем и работы автомобильного транспорта","НИОКР","Минтранс России",null,1]
["2/3","Разработка научно-обоснованных предложений по совершенствованию системы подготовки и непрерывного повышения квалификации специалистов, ответственных за обеспечение безопасного функционирования автомобильного транспорта, и ее гармонизации с международной системой профессиональной подготовки. Разработка курсов дистанционного обучения и методики оценки освоения учебных материалов при дистанционной форме обучения","НИОКР","Минтранс России",null,1]
["2/4","Разработка комплексного проекта совершенствования системы подготовки водителей транспортных средств различных категорий, включая водителей из числа лиц с ограниченными физическими возможностями, организационно-методических рекомендаций, программ, учебных и методических пособий, образовательных ресурсов (в том числе в электронном виде) по обучению вождению транспортных средств различных категорий","НИОКР","Минобрнауки России",null,1]
["Мероприятия, направленные на обеспечение безопасного участия детей в дорожном движении\n(приложение № 3 к федеральной целевой программе \"Повышение безопасности дорожного движения в 2013 - 2020 годах\")"]
["3/6","Создание федеральных экспериментальных центров (полигонов) \"Детский автогород\" (не менее 3 центров с общей территорией до 4,5 тыс. кв.м учебных помещений (зданий) и 60,0 тыс. кв.м плоскостных сооружений (оборудованные площадки автогородов)","Капитальные вложения","Минобрнауки России",null,1]
["3/11","Разработка организационно-методических рекомендаций, обеспечивающих функционирование системы обучения безопасному участию в дорожном движении и профилактики детского дорожно-транспортного травматизма, а также организационно-методических рекомендаций и образовательных ресурсов, обеспечивающих внедрение программ и организацию обучения вождению транспортных средств различных категорий в образовательных организациях и организациях дополнительного образования, обеспечение деятельности специализированного интернет-портала по обучению безопасному участию в дорожном движении учащихся, воспитанников дошкольных образовательных организаций и общеобразовательных организаций, организаций дополнительного образования","Прочие нужды","Минобрнауки России",null,1]
["3/12","Проведение всероссийских массовых мероприятий с детьми (конкурсы-фестивали отрядов юных инспекторов движения «Безопасное колесо», профильные смены активистов отрядов юных инспекторов движения, чемпионаты юношеских автошкол по автомногоборью, конкурсы образовательных организаций по профилактике детского дорожно-транспортного травматизма) по профилактике детского дорожно-транспортного травматизма и обучению безопасному участию в дорожном движении","Прочие нужды","Минобрнауки России",null,1]
["3/13","Издание и рассылка научно-методических материалов, печатных и электронных учебных пособий, образовательных ресурсов для дошкольных образовательных организаций, общеобразовательных организаций и организаций дополнительного образования по обучению детей безопасному участию в дорожном движении (обеспечение образовательных организаций пилотными комплектами учебных пособий и программ), в том числе учебно-методических пособий по работе с родителями и детьми в целях профилактики детских дорожно-транспортных происшествий, проведение родительского Всеобуча, семейных конкурсов на знание правил дорожного движения","Прочие нужды","Минобрнауки России",null,1]
["3/14","Мониторинг состояния материальной и учебно-методической базы общеобразовательных организаций по обучению детей правилам дорожного движения и формированию у них навыков безопасного участия в дорожном движении","Прочие нужды","Минобрнауки России",null,1]
["3/15","Реализация типовых проектов мобильных автогородков (создание опытных образцов мобильных автогородков и проведение их апробации) для обучения с их помощью детей и педагогического состава общеобразовательных и дошкольных образовательных организаций, организаций дополнительного образования основам безопасного участия в дорожном движении (не менее 6 мобильных автогородков)","Прочие нужды","Минобрнауки России",null,1]
["3/16","Учебно-методическое обеспечение (техническими средствами обучения, наглядными, учебными и методическими пособиями, электронными образовательными ресурсами) федеральных экспериментальных центров (полигонов) «Детский автогород»","Прочие нужды","Минобрнауки России",null,1]
["3/17","Повышение квалификации (в том числе по модульным курсам) преподавательского состава общеобразовательных организаций, организаций дополнительного образования и дошкольных образовательных организаций в сфере формирования у детей навыков безопасного участия в дорожном движении","Прочие нужды","Минобрнауки России",null,1]
["3/1","Разработка комплексного проекта профилактики детского дорожно-транспортного травматизма на период 2013-2020 гг., программ, учебно-методических пособий, образовательных ресурсов (в том числе в электронном виде), разработка специализированного интернет-портала по обучению безопасному участию в дорожном движении учащихся, воспитанников дошкольных образовательных организаций и общеобразовательных организаций, организаций дополнительного образования, в том числе с использованием инновационных образовательных продуктов и современных компьютерных технологий","НИОКР","Минобрнауки России",null,1]
["3/2","Разработка модульных программ повышения квалификации педагогических работников дошкольных образовательных организаций и общеобразовательных организаций, организаций дополнительного образования по вопросам обучения учащихся, воспитанников навыкам безопасного участия в дорожном движении и рекомендаций по их использованию","НИОКР","Минобрнауки России",null,1]
["3/3","Разработка оборудования (уголки по правилам дорожного движения, тренажеры, компьютерные программы и т.д.) для образовательных организаций с целью использования их в процессе обучения детей безопасному участию в дорожном движении","НИОКР","Минобрнауки России",null,1]
["3/4","Разработка программ, учебно-методических материалов по обучению вождению транспортных средств в системе дополнительного образования детей","НИОКР","Минобрнауки России",null,1]
["Мероприятия, направленные на повышение уровня технического состояния эксплуатирующихся транспортных средств, их активной и пассивной безопасности\n(приложение № 4 к федеральной целевой программе \"Повышение безопасности дорожного движения в 2013 - 2020 годах\")"]
["4/5","Обоснование технических требований и адаптация конструкций транспортных средств с компонентами электронных систем, обеспечивающих выполнение перспективных требований технического законодательства в области безопасности колесных транспортных средств, посредством внедрения элементов интеллектуальных транспортных систем в целях повышения активной безопасности: системы автоматической регистрации параметров движения транспортных средств; системы регистрации параметров дорожно-транспортных происшествий; системы автоматического экстренного торможения (AEBS); системы предупреждения о выходе с полосы движения (LDWS); электронных систем контроля устойчивости и помощи водителю при экстренном торможении; систем мониторинга давления воздуха в шинах; систем контроля состояния водителя и т.п.","Прочие нужды","Минпромторг России",null,1]
["4/6","Разработка прикладных программ моделирования движения транспортных средств для расчета параметров активной безопасности. Проведение виртуальных исследований движения транспортных средств с интеллектуальными системами активной безопасности в различных критических и экстремальных условиях","Прочие нужды","Минпромторг России",null,1]
["4/7","Материально-техническое, метрологическое и методологическое обеспечение проведения научных исследований по повышению активной и пассивной безопасности транспортных средств","Прочие нужды","Минпромторг России",null,1]
["4/1","Проведение научных исследований и разработка рекомендаций по возможности использования современных систем повышения активной безопасности автомобилей с учетом российских условий эксплуатации. Разработка методов оценки эффективности электронных систем контроля устойчивости (EVSC) коммерческих транспортных средств на основании анализа соответствующих международных документов и с учетом российских условий эксплуатации","НИОКР","Минпромторг России",null,1]
["4/2","Проведение поисковых исследований и создание перспективных технологий по защите от поражения электрическим током на автомобилях с комбинированной энергетической установкой и электромобилях","НИОКР","Минпромторг России",null,1]
["4/3","Проведение научных исследований в области пассивной безопасности транспортных средств, направленных на снижение травмирования водителей, пассажиров и пешеходов при дорожно-транспортных происшествиях","НИОКР","Минпромторг России",null,1]
["4/4","Проведение научных исследований с целью создания перспективной методологии подготовки водителей транспортных средств на базе компьютерных обучающих программ и модельного ряда автотренажеров различной степени сложности","НИОКР","Минпромторг России",null,1]
["Мероприятия, направленные на развитие системы организации движения транспортных средств и пешеходов и повышение безопасности дорожных условий\n(приложение № 5 к федеральной целевой программе \"Повышение безопасности дорожного движения в 2013 - 2020 годах\")"]
["5/10","Строительство, реконструкция, техническое перевооружение пересечений на автомобильных дорогах общего пользования федерального значения с целью увеличения пропускной способности и совершенствования организации дорожного движения (не менее 81 пересечения)","Капитальные вложения","Росавтодор",null,1]
["5/11","Строительство, реконструкция, техническое перевооружение (оборудование искусственным освещением) мест концентрации дорожно-транспортных происшествий на участках автомобильных дорог общего пользования федерального значения, проходящим по территориям населённых пунктов (не менее 144 мест концентрации ДТП)","Капитальные вложения","Росавтодор",null,1]
["5/12","Разработка комплексных схем организации дорожного движения, проектов автоматизированных систем управления дорожным движением, организация работ по анализу доступности услуг транспортной системы  на сети автомобильных дорог, прилегающих к границам Санкт-Петербурга и Ленинградской области","Прочие нужды","Минтранс России",null,1]
["5/13","Проведение специализированных обучающих конференций и семинаров, посвященных вопросам совершенствования организации дорожного движения, освещение проблем организации дорожного движения в средствах массовой информации","Прочие нужды","Минтранс России",null,1]
["5/14","Подготовка ежегодных аналитических обзоров и предложений по совершенствованию законодательного и нормативно-правового регулирования в сфере обеспечения безопасности автомобильных перевозок пассажиров и грузов","Прочие нужды","Минтранс России",null,1]
["5/15","Освещение проблем организации дорожного движения в средствах массовой информации","Прочие нужды","Росавтодор",null,1]
["5/16","Разработка программного продукта по информационному обмену данными между Росавтодором, ГИБДД и МЧС России","Прочие нужды","Росавтодор",null,1]
["5/1","Проведение научных исследований, направленных на разработку современных методов организации дорожного движения, в том числе основанных на исследовании влияния режимов движения транспортных потоков на безопасность дорожного движения","НИОКР","Минтранс России",null,1]
["5/2","Разработка научно обоснованных предложений по созданию, развитию и функционированию единого парковочного пространства в городах Российской Федерации","НИОКР","Минтранс России",null,1]
["5/3","Разработка научно обоснованных предложений по системе оценки качества и эффективности организации дорожного движения в Российской Федерации","НИОКР","Минтранс России",null,1]
["5/4","Разработка методики проведения аудита безопасности движения при проектировании, строительстве и эксплуатации автомобильных дорог","НИОКР","Росавтодор",null,1]
["5/5","Разработка нормативно-методических документов по созданию и развитию интеллектуальных транспортных систем","НИОКР","Росавтодор",null,1]
["Мероприятия, направленные на развитие системы оказания помощи пострадавшим в дорожно-транспортных происшествиях\n(приложение № 6 к федеральной целевой программе \"Повышение безопасности дорожного движения в 2013 - 2020 годах\")"]
["6/3","Строительство учебно-тренировочного комплекса для подготовки сотрудников МЧС России и отработки действий экстренных служб, участвующих в ликвидации последствий дорожно-транспортных происшествий в Сибирском федеральном округе (п. Дивногорск, Красноярский край, не менее 1,7 тыс. кв.м.)    ","Капитальные вложения","МЧС России",null,1]
["6/4","Строительство, реконструкция натурных площадок для отработки современных методов и способов ликвидации последствий дорожно-транспортных происшествий (не менее 800 кв.м)","Капитальные вложения","МЧС России",null,1]
["6/10","Разработка информационных и методических материалов для взрослой и детской аудиторий, информирующих о правилах оказания первой помощи пострадавшим в дорожно-транспортных происшествиях ","Прочие нужды","Минздрав России",null,1]
["6/11","Тиражирование и распространение информационных и методических материалов для взрослой и детской аудиторий, информирующих о правилах оказания первой помощи пострадавшим в дорожно-транспортных происшествиях ","Прочие нужды","Минздрав России",null,1]
["6/13","Проведение всероссийского конкурса профессионального мастерства среди работников скорой медицинской помощи, медицины катастроф и работников экстренных оперативных служб по оказанию первой и медицинской помощи, пострадавших при дорожно-транспортных происшествиях","Прочие нужды","Минздрав России",null,1]
["6/5","Внедрение современных образцов специальной  техники, инструмента, оборудования и технологий, предназначенных для проведения аварийно-спасательных работ, в подразделения МЧС России, привлекаемые к ликвидации последствий дорожно-транспортных происшествий","Прочие нужды","МЧС России",null,1]
["6/6","Практическая отработка вопросов взаимодействия экстренных служб и проведения аварийно-спасательных работ при ликвидации последствий дорожно-транспортных происшествий","Прочие нужды","МЧС России",null,1]
["6/7","Организационно-методическое и техническое обеспечение подразделений МЧС России, осуществляющих профессиональную подготовку и повышение квалификации личного состава, принимающего участие в ликвидации дорожно-транспортных происшествий","Прочие нужды","МЧС России",null,1]
["6/8","Участие МЧС России в коммуникативных мероприятиях (конференциях, форумах, выставках и иных общественных  мероприятиях) в области безопасности дорожного движения и оказания помощи пострадавшим в дорожно-транспортных происшествиях","Прочие нужды","МЧС России",null,1]
["6/9","Развитие Центра мониторинга ликвидации последствий дорожно-транспортных происшествий МЧС России","Прочие нужды","МЧС России",null,1]
["6/1","Проведение научных исследований, направленных на совершенствование нормативной и методической базы в области ликвидации последствий дорожно-транспортных происшествий","НИОКР","МЧС России",null,1]
["6/2","Разработка научно-обоснованных предложений по совершенствованию информационно-аналитического обеспечения функционирования системы ликвидации последствий дорожно-транспортных происшествий","НИОКР","МЧС России",null,1]
["Мероприятия, направленные на совершенствование нормативно-правового, организационного и методического обеспечения деятельности в сфере обеспечения безопасности дорожного движения\n(приложение № 7 к федеральной целевой программе \"Повышение безопасности дорожного движения в 2013 - 2020 годах\")"]
["7/6","Текущее управление Программой (содержание федерального казенного учреждения «Дирекция по управлению федеральной целевой программой «Повышение безопасности дорожного движения в 2006 - 2012 годах» )","Прочие нужды","МВД России",null,1]
["7/7","Проведение специализированных семинаров, посвященных обмену опытом в деятельности по обеспечению безопасности дорожного движения и внедрению на региональном и муниципальном уровнях результатов научно-исследовательских и опытно- конструкторских работ, выполненных в рамках реализации Программы","Прочие нужды","МВД России",null,1]
["7/8","Создание аналитических систем управления безопасностью дорожного движения МВД России","Прочие нужды","МВД России",null,1]
["7/9","Подготовка и периодическое повышение квалификации работников управлений госавтодорнадзора Ространснадзора по осуществлению контрольно-надзорных функций по соблюдению владельцами транспортных средств установленных требований по параметрам перевозок (режим труда и отдыха водителей, скоростной режим движения и т.п.) с применением цифровых тахографов","Прочие нужды","Минтранс России",null,1]
["7/1","Разработка механизма по установлению индивидуальных целевых заданий для субъектов Российской Федерации по снижению уровня дорожно-транспортной аварийности на период до 2020 года и закреплению субсидиарной ответственности федерального центра и субъектов Российской Федерации за достижение целей деятельности по обеспечению безопасности дорожного движения","НИОКР","МВД России",null,1]
["7/2","Изучение существующих положений и построение научно-обоснованных моделей разграничения полномочий (сфер ответственности) органов исполнительной власти различного уровня, органов местного самоуправления","НИОКР","МВД России",null,1]
["7/3","Проведение комплексных научных исследований, направленных на создание аналитических методов поддержки принятия решений и управления в сфере безопасности дорожного движения с учетом федерального, регионального и местного аспектов, а также разработке механизмов комплексной оценки и анализа эффективности и результативности текущей и программной деятельности","НИОКР","МВД России",null,1]
["7/4","Разработка действенных механизмов по привлечению внебюджетных финансовых средств в приоритетные проекты обеспечения безопасности дорожного движения, развитию государственно-частного партнерства, созданию эффективных саморегулируемых организаций, а также методов аутсорсинга в сфере обеспечения безопасности дорожного движения","НИОКР","МВД России",null,1]
["7/5","Проведение научных исследований в области применения программных продуктов математического моделирования транспортных потоков при разработке комплексных схем организации дорожного движения, проектов организации дорожного движения, а также проектов автоматизированных систем управления дорожным движением. Разработка предложений по нормативному и методическому обеспечению использования программных продуктов при проектировании в сфере организации дорожного движения","НИОКР","Минтранс России",null,1]
[]
[]
[" - "]

{"sheet":"Наименования субъектов РФ","index":4,"n_rows":84,"n_cols":2,"rows_kept":84,"cut":false,"hidden":false,"merged":[]}
["Порядковый номер субъекта РФ в соответствии с Конституцией РФ","Полное наименование субъекта РФ"]
["01","Республика Адыгея (Адыгея) "]
["02","Республика Алтай "]
["03","Республика Башкортостан "]
["04","Республика Бурятия "]
["05","Республика Дагестан "]
["06","Республика Ингушетия"]
["07","Кабардино-Балкарская Республика "]
["08","Республика Калмыкия "]
["09","Карачаево-Черкесская Республика "]
["10","Республика Карелия "]
["11","Республика Коми "]
["12","Республика Марий Эл "]
["13","Республика Мордовия "]
["14","Республика Саха (Якутия) "]
["15","Республика Северная Осетия - Алания "]
["16","Республика Татарстан (Татарстан) "]
["17","Республика Тыва "]
["18","Удмуртская Республика "]
["19","Республика Хакасия "]
["20","Чеченская Республика "]
["21","Чувашская Республика - Чувашия"]
["22","Алтайский край "]
["23","Забайкальский край "]
["24","Камчатский край "]
["25","Краснодарский край "]
["26","Красноярский край "]
["27","Пермский край "]
["28","Приморский край "]
["29","Ставропольский край "]
["30","Хабаровский край"]
["31","Амурская область "]
["32","Архангельская область "]
["33","Астраханская область "]
["34","Белгородская область "]
["35","Брянская область "]
["36","Владимирская область "]
["37","Волгоградская область "]
["38","Вологодская область "]
["39","Воронежская область "]
["40","Ивановская область "]
["41","Иркутская область "]
["42","Калининградская область "]
["43","Калужская область "]
["44","Кемеровская область "]
["45","Кировская область "]
["46","Костромская область "]
["47","Курганская область "]
["48","Курская область "]
["49","Ленинградская область "]
["50","Липецкая область "]
["51","Магаданская область "]
["52","Московская область "]
["53","Мурманская область "]
["54","Нижегородская область "]
["55","Новгородская область "]
["56","Новосибирская область "]
["57","Омская область "]
["58","Оренбургская область "]
["59","Орловская область "]
["60","Пензенская область "]
["61","Псковская область "]
["62","Ростовская область "]
["63","Рязанская область "]
["64","Самарская область "]
["65","Саратовская область "]
["66","Сахалинская область "]
["67","Свердловская область "]
["68","Смоленская область "]
["69","Тамбовская область "]
["70","Тверская область "]
["71","Томская область "]
["72","Тульская область "]
["73","Тюменская область "]
["74","Ульяновская область "]
["75","Челябинская область "]
["76","Ярославская область"]
["77","Москва "]
["78","Санкт-Петербург"]
["79","Еврейская автономная область"]
["80","Ненецкий автономный округ "]
["81","Ханты-Мансийский автономный округ - Югра "]
["82","Чукотский автономный округ "]
["83","Ямало-Ненецкий автономный округ"]